bitfinex-derivatives/quotes_BTCF0:USTF0_20250514
["timestamp","ask_amount","ask_price","bid_price","bid_amount"]
[1747242768884,1.02335466,103160.0,103150.0,0.16593883]
[1747242769271,0.8379444,103160.0,103150.0,0.16593883]
[1747242769471,1.02335466,103160.0,103150.0,0.19843883]
[1747242769980,1.02335466,103160.0,103150.0,0.20405954]
[1747242770176,1.02335466,103160.0,103150.0,0.18671528]
[1747242771071,0.8379444,103160.0,103150.0,0.18671528]
[1747242771280,1.02335466,103160.0,103150.0,0.18671528]
[1747242772285,1.02335466,103160.0,103150.0,0.16091028]
[1747242773878,1.02535466,103160.0,103150.0,0.16091028]
[1747242774580,1.02535466,103160.0,103150.0,0.19401028]
[1747242774977,1.49087466,103160.0,103150.0,0.19401028]
[1747242775171,1.02535466,103160.0,103150.0,0.19401028]
[1747242775380,1.49087466,103160.0,103150.0,0.22451028]
[1747242775587,1.27087466,103160.0,103150.0,0.22451028]
[1747242775778,1.27087466,103160.0,103150.0,0.25491028]
[1747242775976,0.6199444,103160.0,103150.0,0.25491028]
[1747242776179,1.0853844,103160.0,103150.0,0.44877348]
[1747242776384,0.6199444,103160.0,103150.0,0.44877348]
[1747242776788,1.0529844,103160.0,103150.0,0.44877348]
[1747242776975,1.0529844,103160.0,103150.0,0.64418374]
[1747242776976,0.7926444,103160.0,103150.0,0.64418374]
[1747242777175,0.5566444,103160.0,103150.0,0.64418374]
[1747242777387,0.7925644,103160.0,103150.0,0.64418374]
[1747242778276,0.7925644,103160.0,103150.0,0.44877348]
[1747242778489,0.8228644,103160.0,103150.0,0.44877348]
[1747242779093,0.8228644,103160.0,103150.0,0.25491028]
[1747242779282,0.8228644,103160.0,103150.0,0.44877348]
[1747242779989,1.03977466,103160.0,103150.0,0.25491028]
[1747242780173,1.07237466,103160.0,103150.0,0.25491028]
[1747242780584,0.8869644,103160.0,103150.0,0.25491028]
[1747242780780,1.07237466,103160.0,103150.0,0.25491028]
[1747242781186,1.07237466,103160.0,103150.0,0.19401028]
[1747242782090,1.07237466,103160.0,103150.0,0.22551028]
[1747242782286,0.8869644,103160.0,103150.0,0.22551028]
[1747242782682,1.1245244,103160.0,103150.0,0.22551028]
[1747242783693,1.30993466,103160.0,103150.0,0.22551028]
[1747242783991,1.1245244,103160.0,103150.0,0.22551028]
[1747242785090,1.1245244,103160.0,103150.0,0.41937348]
[1747242785091,1.1244444,103160.0,103150.0,0.41937348]
[1747242785390,1.0603444,103160.0,103150.0,0.41937348]
[1747242785987,1.0601844,103160.0,103150.0,0.60478374]
[1747242786188,0.8247844,103160.0,103150.0,0.60478374]
[1747242786392,0.5869444,103160.0,103150.0,0.60478374]
[1747242786689,0.1958444,103160.0,103150.0,1.57666523]
[1747242786887,0.1958444,103160.0,103150.0,1.21586523]
[1747242787084,0.19099581,103160.0,103150.0,1.57666523]
[1747242787781,0.55179581,103160.0,103150.0,1.03045497]
[1747242787981,0.22309581,103160.0,103150.0,1.03045497]
[1747242788189,0.22309581,103160.0,103150.0,1.21586523]
[1747242788576,0.22309581,103160.0,103150.0,1.12086406]
[1747242790088,0.22309581,103160.0,103150.0,0.92700086]
[1747242790287,0.22309581,103160.0,103150.0,0.9354538]
[1747242790485,0.22309581,103160.0,103150.0,0.64464911]
[1747242790687,0.61709581,103160.0,103150.0,0.64464911]
[1747242791296,0.25629581,103160.0,103150.0,0.83851231]
[1747242791491,0.61709581,103160.0,103150.0,0.83851231]
[1747242792991,0.61709581,103160.0,103150.0,0.42131231]
[1747242794895,0.61709581,103160.0,103150.0,0.51825231]
[1747242795094,0.25629581,103160.0,103150.0,0.80060406]
[1747242795284,0.0653,103160.0,103150.0,1.16140406]
[1747242795994,0.2591444,103160.0,103150.0,1.16140406]
[1747242796502,0.2591444,103160.0,103150.0,1.41140406]
[1747242796799,0.2591444,103160.0,103150.0,2.91140406]
[1747242797395,0.2591444,103160.0,103150.0,2.66140406]
[1747242798899,0.2591444,103160.0,103150.0,3.07860406]
[1747242799100,0.1938444,103160.0,103150.0,3.01400406]
[1747242799702,0.1938444,103160.0,103150.0,3.24948406]
[1747242800703,0.1938444,103160.0,103150.0,3.01400406]
[1747242800900,0.1938444,103160.0,103150.0,3.24948406]
[1747242801495,0.1938444,103160.0,103150.0,3.15254406]
[1747242804100,0.2648983,103170.0,103160.0,0.1938444]
[1747242804302,0.2648983,103170.0,103160.0,1.15725466]
[1747242804498,0.2648983,103170.0,103160.0,1.1724104]
[1747242804700,0.2648983,103170.0,103160.0,1.26934249]
[1747242805206,0.2648983,103170.0,103160.0,1.43134249]
[1747242805800,0.2164404,103170.0,103160.0,1.43134249]
[1747242810312,0.2164404,103170.0,103160.0,1.44134249]
[1747242811512,0.02261,103170.0,103160.0,1.44134249]
[1747242811707,0.304201,103190.0,103180.0,0.1938069]
[1747242811910,0.2072881,103190.0,103180.0,1.16721716]
[1747242812109,0.1937881,103190.0,103180.0,1.32921716]
[1747242812511,0.1937881,103190.0,103180.0,1.42614925]
[1747242812812,0.24567328,103200.0,103190.0,0.1937881]
[1747242813020,0.24567328,103200.0,103190.0,0.74999836]
[1747242813216,0.60647328,103200.0,103190.0,0.55119836]
[1747242813417,0.73647328,103200.0,103190.0,0.55119836]
[1747242813715,0.79977328,103200.0,103190.0,0.5663541]
[1747242813914,0.79977328,103200.0,103190.0,0.44514384]
[1747242814116,0.79977328,103200.0,103190.0,0.47584384]
[1747242814305,0.80177328,103200.0,103190.0,0.47584384]
[1747242815407,0.81686328,103200.0,103190.0,0.47584384]
[1747242815706,0.81686328,103200.0,103190.0,0.48146455]
[1747242815912,0.68686328,103200.0,103190.0,0.48146455]
[1747242816118,0.68686328,103200.0,103190.0,0.66687481]
[1747242816414,0.65356328,103200.0,103190.0,0.66687481]
[1747242816619,0.62356328,103200.0,103190.0,0.66687481]
[1747242817118,0.62356328,103200.0,103190.0,0.76377872]
[1747242817710,0.26276328,103200.0,103190.0,0.76377872]
[1747242818009,0.62356328,103200.0,103190.0,0.76377872]
[1747242818517,0.65606328,103200.0,103190.0,0.76377872]
[1747242821415,0.65606328,103200.0,103190.0,0.75377872]
[1747242822914,0.65606328,103200.0,103190.0,1.17097872]
[1747242823116,0.65606328,103200.0,103190.0,0.98556846]
[1747242823313,0.68716328,103200.0,103190.0,0.98556846]
[1747242824323,0.87257354,103200.0,103190.0,0.69487645]
[1747242824517,0.95507354,103200.0,103190.0,0.69487645]
[1747242824711,0.76966328,103200.0,103190.0,0.69487645]
[1747242825824,0.76966328,103200.0,103190.0,0.88866455]
[1747242826520,0.76966328,103200.0,103190.0,0.69487645]
[1747242827114,0.73716328,103200.0,103190.0,0.88866455]
[1747242827316,0.73716328,103200.0,103190.0,1.08407481]
[1747242827824,0.97028328,103200.0,103190.0,1.07407481]
[1747242828519,0.73716328,103200.0,103190.0,1.07407481]
[1747242828711,0.97004328,103200.0,103190.0,0.88866455]
[1747242828917,0.97004328,103200.0,103190.0,0.65687481]
[1747242829418,0.97004328,103200.0,103190.0,0.27767645]
[1747242829817,0.92004328,103200.0,103190.0,0.27767645]
[1747242830017,1.10004328,103200.0,103190.0,0.27767645]
[1747242830313,1.10004328,103200.0,103190.0,0.47146455]
[1747242832023,1.0985887,103200.0,103190.0,0.47146455]
[1747242832226,1.0975887,103200.0,103190.0,0.27767645]
[1747242832421,1.0975887,103200.0,103190.0,0.47146455]
[1747242833327,0.9175887,103200.0,103190.0,0.47146455]
[1747242833530,0.9375887,103200.0,103190.0,0.47146455]
[1747242834229,0.9375887,103200.0,103190.0,0.27767645]
[1747242834930,0.9375887,103200.0,103190.0,0.47146455]
[1747242835323,0.9375887,103200.0,103190.0,0.27767645]
[1747242835523,0.9375887,103200.0,103190.0,0.47146455]
[1747242835918,1.10299896,103200.0,103190.0,0.18277645]
[1747242836220,1.37299896,103200.0,103190.0,0.18277645]
[1747242836426,1.1875887,103200.0,103190.0,0.18277645]
[1747242837830,1.1875887,103200.0,103190.0,0.21417645]
[1747242839232,1.1875887,103200.0,103190.0,0.18277645]
[1747242841237,1.37299896,103200.0,103190.0,0.18277645]
[1747242843032,0.9875887,103200.0,103190.0,0.18277645]
[1747242843232,0.7557087,103200.0,103190.0,0.18277645]
[1747242843532,0.9857487,103200.0,103190.0,0.18277645]
[1747242843736,1.2155887,103200.0,103190.0,0.18277645]
[1747242843936,0.7557087,103200.0,103190.0,0.18277645]
[1747242844137,1.2155087,103200.0,103190.0,0.21377645]
[1747242844328,1.2155087,103200.0,103190.0,0.18277645]
[1747242844632,1.0657087,103200.0,103190.0,0.18277645]
[1747242844828,1.5253087,103200.0,103190.0,0.18277645]
[1747242848139,1.3453087,103200.0,103190.0,0.18277645]
[1747242848336,1.53071896,103200.0,103190.0,0.18277645]
[1747242854648,1.53071896,103200.0,103190.0,0.21417645]
[1747242856645,1.53071896,103200.0,103190.0,0.27647645]
[1747242856832,1.1157487,103200.0,103190.0,0.28647645]
[1747242857037,1.3435887,103200.0,103190.0,0.27647645]
[1747242857238,1.3434687,103200.0,103190.0,0.27647645]
[1747242858546,0.8857087,103200.0,103190.0,0.27647645]
[1747242858743,1.1131087,103200.0,103190.0,0.27647645]
[1747242859250,1.23544469,103200.0,103190.0,0.27647645]
[1747242860050,1.23544469,103200.0,103190.0,0.21417645]
[1747242861447,1.1126687,103200.0,103190.0,0.21417645]
[1747242861651,1.1126687,103200.0,103190.0,0.24527645]
[1747242863044,0.8857087,103200.0,103190.0,0.43906455]
[1747242863346,1.0024287,103200.0,103190.0,0.24527645]
[1747242863851,1.0024287,103200.0,103190.0,0.43906455]
[1747242864051,0.9124287,103200.0,103190.0,0.25527645]
[1747242865239,0.9124287,103200.0,103190.0,0.44906455]
[1747242865544,0.9124287,103200.0,103190.0,0.25527645]
[1747242866446,0.9624287,103200.0,103190.0,0.25527645]
[1747242867639,0.6857087,103200.0,103190.0,0.63548611]
[1747242867948,0.6546087,103200.0,103190.0,0.63548611]
[1747242868150,0.6221087,103200.0,103190.0,0.63548611]
[1747242868344,0.2613087,103200.0,103190.0,0.63548611]
[1747242868548,0.01909,103200.0,103190.0,1.87119002]
[1747242868749,0.2128593,103200.0,103190.0,1.87119002]
[1747242869451,0.2128593,103200.0,103190.0,1.96809402]
[1747242869843,0.5696593,103200.0,103190.0,0.76938036]
[1747242870047,0.98128086,103200.0,103190.0,0.67247645]
[1747242870540,0.7948593,103200.0,103190.0,0.67247645]
[1747242871850,0.7948593,103200.0,103190.0,0.66247645]
[1747242872051,0.7948593,103200.0,103190.0,0.63137645]
[1747242872353,0.98128086,103200.0,103190.0,0.63137645]
[1747242873151,0.7948593,103200.0,103190.0,0.63137645]
[1747242873355,0.7948593,103200.0,103190.0,0.82516455]
[1747242873555,0.6348593,103200.0,103190.0,0.66227645]
[1747242873855,0.6448593,103200.0,103190.0,0.66227645]
[1747242874056,0.6448593,103200.0,103190.0,0.24507645]
[1747242875347,0.6448593,103200.0,103190.0,0.43886455]
[1747242875547,0.6348593,103200.0,103190.0,0.24507645]
[1747242875953,0.6348593,103200.0,103190.0,0.43886455]
[1747242876155,0.2740593,103200.0,103190.0,0.63528611]
[1747242876352,0.4681793,103200.0,103190.0,0.63528611]
[1747242877259,0.8289793,103200.0,103190.0,0.63528611]
[1747242877460,0.8620793,103200.0,103190.0,0.63528611]
[1747242877648,0.8620793,103200.0,103190.0,0.44886455]
[1747242878459,0.8620793,103200.0,103190.0,0.25507645]
[1747242878760,0.8620793,103200.0,103190.0,0.43886455]
[1747242879059,0.8615993,103200.0,103190.0,0.43886455]
[1747242879261,0.8715993,103200.0,103190.0,0.43886455]
[1747242881465,0.8615993,103200.0,103190.0,0.43886455]
[1747242882251,0.8610393,103200.0,103190.0,0.43886455]
[1747242883765,0.5002393,103200.0,103190.0,0.43886455]
[1747242883956,0.8610393,103200.0,103190.0,0.43886455]
[1747242885365,0.8605993,103200.0,103190.0,0.62528611]
[1747242885764,0.8605993,103200.0,103190.0,0.43149801]
[1747242885958,0.8605993,103200.0,103190.0,0.24507645]
[1747242886361,0.8605993,103200.0,103190.0,0.43886455]
[1747242888072,0.6349593,103200.0,103190.0,0.43886455]
[1747242888258,0.2410593,103200.0,103190.0,1.09299002]
[1747242888462,0.2088593,103200.0,103190.0,1.09299002]
[1747242888864,0.2410593,103200.0,103190.0,1.09299002]
[1747242889069,0.2088593,103200.0,103190.0,1.51019002]
[1747242889271,0.2088593,103200.0,103190.0,1.73783002]
[1747242890871,0.2414593,103200.0,103190.0,1.73783002]
[1747242892677,0.2727593,103200.0,103190.0,1.51019002]
[1747242892868,0.2727593,103200.0,103190.0,1.73783002]
[1747242894074,0.2414593,103200.0,103190.0,1.73783002]
[1747242895577,0.2727593,103200.0,103190.0,1.73783002]
[1747242899379,0.2727593,103200.0,103190.0,1.67370848]
[1747242900195,0.2414593,103200.0,103190.0,1.67370848]
[1747242901378,0.2414593,103200.0,103190.0,1.65855274]
[1747242901580,0.2414593,103200.0,103190.0,1.67369889]
[1747242902386,0.23661254,103200.0,103190.0,1.55139887]
[1747242902682,0.23661254,103200.0,103190.0,1.67369889]
[1747242902683,0.2591693,103200.0,103190.0,1.67369889]
[1747242902982,0.2263693,103200.0,103190.0,1.67369889]
[1747242904581,0.2591693,103200.0,103190.0,1.67563697]
[1747242904782,0.2906693,103200.0,103190.0,1.67563697]
[1747242905377,0.2263693,103200.0,103190.0,1.67563697]
[1747242906779,0.2565693,103200.0,103190.0,1.67563697]
[1747242907271,0.2906478,103210.0,103200.0,0.1937693]
[1747242907467,0.3207478,103210.0,103200.0,1.32306934]
[1747242907780,0.3207478,103210.0,103200.0,1.33821549]
[1747242907976,0.3523478,103210.0,103200.0,1.43511002]
[1747242908172,0.3523478,103210.0,103200.0,1.47481]
[1747242908376,0.3543478,103210.0,103200.0,1.11401]
[1747242908582,0.7151478,103210.0,103200.0,0.63554615]
[1747242908776,0.83744782,103210.0,103200.0,0.78811545]
[1747242908978,0.7151478,103210.0,103200.0,0.78811545]
[1747242909390,0.7151478,103210.0,103200.0,0.79811545]
[1747242909574,0.7171478,103210.0,103200.0,0.83131545]
[1747242909876,0.7171478,103210.0,103200.0,0.95361547]
[1747242911373,0.7171478,103210.0,103200.0,0.83131545]
[1747242911584,0.7171478,103210.0,103200.0,0.79811545]
[1747242911778,0.7171478,103210.0,103200.0,0.95261547]
[1747242912382,0.7171478,103210.0,103200.0,0.98361547]
[1747242912577,0.7171478,103210.0,103200.0,1.10591549]
[1747242912881,0.7171478,103210.0,103200.0,1.20281002]
[1747242913082,0.7171478,103210.0,103200.0,1.08051]
[1747242913285,0.7171478,103210.0,103200.0,1.14455779]
[1747242915373,0.7171478,103210.0,103200.0,0.70124068]
[1747242915571,0.7471478,103210.0,103200.0,0.59434615]
[1747242915786,0.93349561,103210.0,103200.0,0.59434615]
[1747242915987,0.93349561,103210.0,103200.0,0.17714615]
[1747242916986,0.7471478,103210.0,103200.0,0.17714615]
[1747242918286,1.15777561,103210.0,103200.0,0.17714615]
[1747242918588,1.47777561,103210.0,103200.0,0.17714615]
[1747242919178,1.47777561,103210.0,103200.0,0.01514615]
[1747242920088,1.47777561,103210.0,103200.0,0.17714615]
[1747242921191,1.47777561,103210.0,103200.0,0.18276686]
[1747242930587,1.47777561,103210.0,103190.0,0.00193808]
[1747242930793,1.05841711,103200.0,103190.0,0.00193808]
[1747242930999,1.36841711,103200.0,103190.0,0.00193808]
[1747242931798,1.1820693,103200.0,103190.0,0.00193808]
[1747242931991,0.9590693,103200.0,103190.0,0.41407399]
[1747242932194,0.5848693,103200.0,103190.0,0.27072618]
[1747242932397,0.8130293,103200.0,103190.0,0.45707399]
[1747242933199,0.8150293,103200.0,103190.0,0.45707399]
[1747242933388,0.8473293,103200.0,103190.0,0.45707399]
[1747242933995,0.8473293,103200.0,103190.0,0.87427399]
[1747242934198,0.8493293,103200.0,103190.0,0.87427399]
[1747242934397,0.8493293,103200.0,103190.0,0.8798947]
[1747242934704,0.8493293,103200.0,103190.0,0.49975879]
[1747242934905,0.8693293,103200.0,103190.0,0.48975879]
[1747242935205,1.05567711,103200.0,103190.0,0.48975879]
[1747242935387,0.8693293,103200.0,103190.0,0.48975879]
[1747242936405,0.8693293,103200.0,103190.0,0.45675879]
[1747242936602,1.05567711,103200.0,103190.0,0.45675879]
[1747242936902,1.21567711,103200.0,103190.0,0.42475879]
[1747242937692,1.0293293,103200.0,103190.0,0.42475879]
[1747242937893,1.0293293,103200.0,103190.0,0.65094689]
[1747242938093,1.0293293,103200.0,103190.0,0.48735879]
[1747242938306,0.8011693,103200.0,103190.0,0.48735879]
[1747242938606,1.0295693,103200.0,103190.0,0.48735879]
[1747242939303,0.8172693,103200.0,103190.0,0.6837066]
[1747242939504,0.8172693,103200.0,103190.0,0.49735879]
[1747242939804,0.8172693,103200.0,103190.0,0.69114689]
[1747242940002,0.8172693,103200.0,103190.0,0.08015879]
[1747242940505,0.8478693,103200.0,103190.0,0.08015879]
[1747242941109,1.34421711,103200.0,103190.0,0.03995879]
[1747242941307,1.34421711,103200.0,103190.0,0.00755879]
[1747242941900,1.37481711,103200.0,103190.0,0.00755879]
[1747242943312,1.37481711,103200.0,103190.0,0.02270818]
[1747242943500,1.37481711,103200.0,103190.0,0.05480818]
[1747242944309,1.37481711,103200.0,103190.0,0.02270818]
[1747242944507,1.14641711,103200.0,103190.0,0.02270818]
[1747242944710,0.1937881,103190.0,103180.0,0.0314]
[1747242944909,0.1938069,103180.0,103170.0,0.0651]
[1747242945112,1.09301471,103180.0,103170.0,0.0965]
[1747242945305,1.12511471,103180.0,103170.0,0.0965]
[1747242945506,0.9387669,103180.0,103170.0,0.0965]
[1747242945909,0.9394069,103180.0,103170.0,0.0965]
[1747242946100,1.1669269,103180.0,103170.0,0.0965]
[1747242946406,1.35327471,103180.0,103170.0,0.0314]
[1747242946604,0.1938257,103170.0,103160.0,0.4823]
[1747242946804,0.6693257,103170.0,103160.0,0.5137]
[1747242947010,0.67916938,103170.0,103160.0,0.5137]
[1747242947213,0.86551719,103170.0,103160.0,0.5137]
[1747242947401,1.14551719,103170.0,103160.0,0.4172]
[1747242948011,0.1938444,103160.0,103150.0,0.09653883]
[1747242948312,1.33379221,103160.0,103150.0,0.09653883]
[1747242949108,1.1474444,103160.0,103150.0,0.09653883]
[1747242949513,1.1474444,103160.0,103150.0,0.09753883]
[1747242949708,1.1474444,103160.0,103150.0,0.10315954]
[1747242950010,1.63379221,103160.0,103150.0,0.00855954]
[1747242950207,1.63379221,103160.0,103150.0,0.00955954]
[1747242950407,1.4474444,103160.0,103150.0,0.00955954]
[1747242950606,1.4474444,103160.0,103150.0,0.04105954]
[1747242950816,1.4474444,103160.0,103150.0,0.07375954]
[1747242952408,0.6518444,103160.0,103150.0,0.07375954]
[1747242952608,1.1125244,103160.0,103150.0,0.08375954]
[1747242953205,1.2125244,103160.0,103150.0,0.07375954]
[1747242954324,1.62887221,103160.0,103150.0,0.04105954]
[1747242954916,1.62887221,103160.0,103150.0,0.00955954]
[1747242955418,1.62887221,103160.0,103150.0,0.04265954]
[1747242956026,1.62887221,103160.0,103150.0,0.00955954]
[1747242957019,1.77427671,103160.0,103150.0,0.01515512]
[1747242957323,0.193882,103140.0,103130.0,0.5140696]
[1747242957526,0.7892005,103140.0,103130.0,0.10573035]
[1747242957728,0.8837005,103140.0,103130.0,0.10573035]
[1747242958828,0.8837005,103140.0,103130.0,0.11073035]
[1747242959823,0.8937005,103140.0,103130.0,0.11473035]
[1747242960423,0.8937005,103140.0,103130.0,0.10473035]
[1747242961427,1.08004831,103140.0,103130.0,0.10473035]
[1747242962230,0.8937005,103140.0,103130.0,0.10473035]
[1747242962525,0.8937005,103140.0,103130.0,0.041]
[1747242962923,1.1219805,103140.0,103130.0,0.041]
[1747242963117,1.4827805,103140.0,103130.0,0.009]
[1747242963317,1.66912831,103140.0,103130.0,0.009]
[1747242963524,1.88912831,103140.0,103130.0,0.009]
[1747242964934,1.88912831,103140.0,103130.0,0.01462071]
[1747242966533,1.7131305,103140.0,103130.0,0.01462071]
[1747242966726,1.89947831,103140.0,103130.0,0.01462071]
[1747242967531,1.89947831,103140.0,103130.0,0.04782071]
[1747242969231,2.08582612,103140.0,103130.0,1e-08]
[1747242969535,0.1939384,103110.0,103100.0,0.10645473]
[1747242969840,1.56992621,103110.0,103100.0,0.10645473]
[1747242970026,1.66436546,103110.0,103100.0,0.10645473]
[1747242970221,1.85071327,103110.0,103100.0,0.12016243]
[1747242970434,1.66436546,103110.0,103100.0,0.12016243]
[1747242970730,1.85071327,103110.0,103100.0,0.12016243]
[1747242970940,1.47801765,103110.0,103100.0,0.12016243]
[1747242971238,1.80223777,103110.0,103090.0,0.14875962]
[1747242971537,0.80504436,103100.0,103090.0,0.14875962]
[1747242971732,1.18504436,103100.0,103090.0,0.14875962]
[1747242971935,1.09504436,103100.0,103090.0,0.14875962]
[1747242973134,1.09504436,103100.0,103090.0,0.14975962]
[1747242973335,1.10604436,103100.0,103090.0,0.15075962]
[1747242974039,1.58632436,103100.0,103090.0,0.00296998]
[1747242975331,1.39997655,103100.0,103090.0,0.00296998]
[1747242975531,1.58632436,103100.0,103090.0,0.00296998]
[1747242976236,0.93169655,103100.0,103090.0,0.00296998]
[1747242976441,0.29062432,103100.0,103090.0,0.45749389]
[1747242976740,0.29062432,103100.0,103090.0,0.48969389]
[1747242976741,0.49987947,103100.0,103090.0,0.48969389]
[1747242976938,0.49987947,103100.0,103090.0,0.30334608]
[1747242977332,0.86067947,103100.0,103090.0,0.30334608]
[1747242977632,0.86067947,103100.0,103090.0,0.10936998]
[1747242978137,0.84432728,103100.0,103090.0,0.10936998]
[1747242978337,1.07836728,103100.0,103090.0,0.10936998]
[1747242978538,0.89201947,103100.0,103090.0,0.10936998]
[1747242978738,0.86901947,103100.0,103090.0,0.30234608]
[1747242979043,0.88201947,103100.0,103090.0,0.30334608]
[1747242979244,0.88201947,103100.0,103090.0,0.29334608]
[1747242979943,0.88201947,103100.0,103090.0,0.09936998]
[1747242980240,1.06836728,103100.0,103090.0,0.10499069]
[1747242981146,1.07836728,103100.0,103090.0,0.10499069]
[1747242982239,1.44836728,103100.0,103090.0,0.10499069]
[1747242982544,1.35836728,103100.0,103090.0,0.00859069]
[1747242983738,1.35836728,103100.0,103090.0,0.02375455]
[1747242985743,1.07836728,103100.0,103090.0,0.02375455]
[1747242985937,1.07836728,103100.0,103090.0,0.05525455]
[1747242986136,1.06836728,103100.0,103090.0,0.05525455]
[1747242986337,1.06351488,103100.0,103090.0,0.05525455]
[1747242987947,0.87716707,103100.0,103090.0,0.05525455]
[1747242988147,1.06351488,103100.0,103090.0,0.05525455]
[1747242988646,0.87716707,103100.0,103090.0,0.11905455]
[1747242990141,1.06351488,103100.0,103090.0,0.11905455]
[1747242990446,1.06465413,103100.0,103090.0,0.11905455]
[1747242991837,0.64426632,103100.0,103090.0,0.11905455]
[1747242992042,1.11098632,103100.0,103090.0,0.11905455]
[1747242992545,1.29733413,103100.0,103090.0,0.11905455]
[1747242992849,1.29721413,103100.0,103090.0,0.11905455]
[1747242993348,0.39066142,103100.0,103090.0,0.59637637]
[1747242993540,0.22381872,103100.0,103090.0,0.95717637]
[1747242993946,0.48825872,103100.0,103090.0,1.37437637]
[1747242994147,0.48813872,103100.0,103090.0,1.37437637]
[1747242994549,0.22381872,103100.0,103090.0,1.37437637]
[1747242995039,0.2165415,103100.0,103090.0,1.37437637]
[1747242995242,0.20809655,103100.0,103090.0,1.37437637]
[1747242995843,0.20809655,103100.0,103090.0,0.81960027]
[1747242996044,0.59349655,103100.0,103090.0,0.82622856]
[1747242996346,0.59749655,103100.0,103090.0,0.82622856]
[1747242996948,0.59749655,103100.0,103090.0,0.82522856]
[1747242996949,0.59449655,103100.0,103090.0,0.82522856]
[1747242997355,0.60890909,103100.0,103090.0,0.82522856]
[1747242997650,0.60890909,103100.0,103090.0,0.63125246]
[1747242997954,0.87364909,103100.0,103090.0,0.63125246]
[1747242999352,0.87364909,103100.0,103090.0,0.53425455]
[1747242999949,1.0599969,103100.0,103090.0,0.68204419]
[1747243000146,1.0599969,103100.0,103090.0,0.61824419]
[1747243001248,1.2923169,103100.0,103090.0,0.58674419]
[1747243002957,1.2923169,103100.0,103090.0,0.16954419]
[1747243003157,1.2923169,103100.0,103090.0,0.02175455]
[1747243004154,1.10596909,103100.0,103090.0,0.02175455]
[1747243004360,1.2923169,103100.0,103090.0,0.02175455]
[1747243004555,1.2923169,103100.0,103090.0,0.05235455]
[1747243004758,1.10596909,103100.0,103090.0,0.05235455]
[1747243004959,1.10988909,103100.0,103090.0,0.05235455]
[1747243005159,1.2962369,103100.0,103090.0,0.05235455]
[1747243005662,1.10988909,103100.0,103090.0,0.02175455]
[1747243005846,1.2962369,103100.0,103090.0,0.05265455]
[1747243006045,1.10988909,103100.0,103090.0,0.05265455]
[1747243006348,1.2962369,103100.0,103090.0,0.05265455]
[1747243012664,1.2962369,103100.0,103090.0,0.02175455]
[1747243014855,1.2962369,103100.0,103090.0,5e-08]
[1747243015860,1.2962369,103100.0,103090.0,6e-08]
[1747243017162,1.3932329,103100.0,103090.0,6e-08]
[1747243017567,0.56669052,103080.0,103070.0,0.00194033]
[1747243017749,1.75713052,103080.0,103070.0,0.00194033]
[1747243017953,1.63428271,103080.0,103070.0,0.00194033]
[1747243018159,1.4479349,103080.0,103070.0,0.00194033]
[1747243018365,1.63428271,103080.0,103070.0,0.00194033]
[1747243018857,1.94428271,103080.0,103070.0,0.00194033]
[1747243019057,1.94428271,103080.0,103070.0,0.00294033]
[1747243019764,1.94528271,103080.0,103070.0,0.00294033]
[1747243020159,1.7669349,103080.0,103070.0,0.00294033]
[1747243020460,1.96128271,103080.0,103070.0,0.00394033]
[1747243021963,1.96136271,103080.0,103070.0,0.00394033]
[1747243022168,1.7750549,103080.0,103070.0,0.06704033]
[1747243022468,1.7750149,103080.0,103070.0,0.06704033]
[1747243023062,1.7748149,103080.0,103070.0,0.06704033]
[1747243023969,1.96116271,103080.0,103070.0,0.06704033]
[1747243024770,1.96116271,103080.0,103070.0,0.07266104]
[1747243025564,1.96116271,103080.0,103070.0,0.04006104]
[1747243025956,1.96116271,103080.0,103070.0,0.00956104]
[1747243026261,1.7748149,103080.0,103070.0,0.00956104]
[1747243026561,1.96116271,103080.0,103070.0,0.04156104]
[1747243028163,1.96116271,103080.0,103070.0,0.00956104]
[1747243028763,1.96116271,103080.0,103070.0,0.02472877]
[1747243029162,0.1940325,103060.0,103050.0,0.48097036]
[1747243029467,1.0293525,103060.0,103050.0,0.48927036]
[1747243029666,1.0926525,103060.0,103050.0,0.48927036]
[1747243030070,1.0926525,103060.0,103050.0,0.07207036]
[1747243030266,1.0926525,103060.0,103050.0,0.26612176]
[1747243030461,1.0986525,103060.0,103050.0,0.07307036]
[1747243030859,1.11349121,103060.0,103050.0,0.07407036]
[1747243033867,0.63897121,103060.0,103050.0,0.26812176]
[1747243034071,0.2050325,103060.0,103050.0,0.91230513]
[1747243034662,0.20617175,103060.0,103050.0,0.91230513]
[1747243035961,0.20131852,103060.0,103050.0,0.91230513]
[1747243039060,0.20131852,103060.0,103050.0,1.32950513]
[1747243040163,0.20131852,103060.0,103050.0,1.33512584]
[1747243040365,0.20131852,103060.0,103050.0,0.97432584]
[1747243040761,0.20131852,103060.0,103050.0,0.49689107]
[1747243040964,0.23211852,103060.0,103050.0,0.69094247]
[1747243041361,0.23211852,103060.0,103050.0,0.70610964]
[1747243042070,0.26391852,103060.0,103050.0,0.70610964]
[1747243042367,0.62471852,103060.0,103050.0,0.70610964]
[1747243042569,0.62471852,103060.0,103050.0,0.89245745]
[1747243043277,0.62471852,103060.0,103050.0,0.70610964]
[1747243044371,0.62471852,103060.0,103050.0,0.89245745]
[1747243045374,0.62471852,103060.0,103050.0,0.70610964]
[1747243046165,0.62471852,103060.0,103050.0,0.73810964]
[1747243046370,0.62471852,103060.0,103050.0,0.92445745]
[1747243047473,0.62471852,103060.0,103050.0,0.73810964]
[1747243047673,0.62471852,103060.0,103050.0,0.92445745]
[1747243048070,0.62471852,103060.0,103050.0,0.73810964]
[1747243048275,0.62471852,103060.0,103050.0,0.92445745]
[1747243048475,0.62471852,103060.0,103050.0,0.73810964]
[1747243048785,0.81106633,103060.0,103050.0,0.54405824]
[1747243049082,0.62471852,103060.0,103050.0,0.54405824]
[1747243049583,0.62471852,103060.0,103050.0,0.73810964]
[1747243049983,0.62471852,103060.0,103050.0,0.72810964]
[1747243050582,0.62471852,103060.0,103050.0,0.53405824]
[1747243050784,0.62471852,103060.0,103050.0,0.53405888]
[1747243050986,0.62471852,103060.0,103050.0,0.31091028]
[1747243051483,0.61986484,103060.0,103050.0,0.31091028]
[1747243052283,0.61986484,103060.0,103050.0,0.50725809]
[1747243052774,0.61986484,103060.0,103050.0,0.32091028]
[1747243053182,0.61986484,103060.0,103050.0,0.12685888]
[1747243053481,0.61986484,103060.0,103050.0,0.32091028]
[1747243054082,0.61986484,103060.0,103050.0,0.12685888]
[1747243054288,0.61986484,103060.0,103050.0,0.09615888]
[1747243054582,0.85654484,103060.0,103050.0,0.03375888]
[1747243054972,1.04289265,103060.0,103050.0,0.02375888]
[1747243055173,1.41289265,103060.0,103050.0,0.02375888]
[1747243056487,1.50992865,103060.0,103050.0,8e-08]
[1747243056786,1.75992865,103060.0,103050.0,8e-08]
[1747243057175,1.50992865,103060.0,103050.0,8e-08]
[1747243057375,1.41289265,103060.0,103050.0,8e-08]
[1747243057570,1.17621265,103060.0,103050.0,8e-08]
[1747243057987,1.47546484,103060.0,103050.0,8e-08]
[1747243058670,1.66181265,103060.0,103050.0,8e-08]
[1747243059289,1.17621265,103060.0,103050.0,8e-08]
[1747243059584,1.17621265,103060.0,103050.0,0.01000008]